[Event "FIDE WSTC Open 65 2025"]
[Site "Prague"]
[Date "2025.02.19"]
[Round "3.11"]
[White "Sibilio, Mario"]
[Black "Hardicsay, Peter"]
[Result "1-0"]
[Annotator "RC"]
[ECO "D43"]
[WhiteElo "2229"]
[BlackElo "2164"]
[PlyCount "84"]
[EventDate "2025.02.17"]
[EventType "team-tourn"]
[EventCountry "CZE"]
[SourceTitle "playchess.com"]
[Source "ChessBase"]
[SourceQuality "1"]
[TimeControl "40/5400+30:1800+30"]

1. d4 {[%emt 0:04:31]} d5 {[%emt 0:00:34]} 2. c4 {[%emt 0:01:28]} e6 {[%emt 0:00:21]} 3. Nf3 {[%emt 0:00:32]} Nf6 {[%emt 0:01:41]} 4. Bg5 {[%emt 0:00:42]} c6 {[%emt 0:01:54]} 5. Qb3 {[%emt 0:03:49]} Nbd7 {[%emt 0:03:46]} 6. Nc3 {[%emt 0:03:02]} Be7 {[%emt 0:06:20]} 7. g3 {[%emt 0:02:25]} b6 {[%emt 0:08:00]} 8. cxd5 {[%emt 0:09:59]} exd5 {[%emt 0:08:43]} 9. Bg2 {[%emt 0:01:27]} O-O {[%emt 0:00:31]} 10. O-O {[%emt 0:00:19]} Bb7 {[%emt 0:06:11]} 11. Rad1 {[%emt 0:15:54]} Ne4 {[%emt 0:15:18]} 12. Bf4 {[%emt 0:03:21]} Nxc3 {[%emt 0:10:58]} 13. bxc3 {[%emt 0:00:45]} Ba6 {[%emt 0:03:09]} 14. Rfe1 {[%emt 0:00:19]} Bc4 {[%emt 0:00:49]} 15. Qc2 {[%emt 0:00:21]} f5 {[%emt 0:00:08]} 16. Nd2 {[%emt 0:02:43]} Ba6 {[%emt 0:03:28]} 17. Qa4 {[%emt 0:02:47]} Bb7 {[%emt 0:01:08]} 18. c4 {[%emt 0:01:20]} Nf6 {[%emt 0:01:37]} 19. Be5 {[%emt 0:04:13]} Ng4 {[%emt 0:09:45]} 20. cxd5 {[%emt 0:01:35]} cxd5 {[%emt 0:00:07]} 21. Nf3 {[%emt 0:00:53]} a6 {[%emt 0:02:43]} 22. h3 {[%emt 0:01:14]} Nf6 {[%emt 0:02:17]} 23. Bxf6 {[%emt 0:05:31]} Bxf6 {[%emt 0:03:44]} 24. Ne5 {[%emt 0:00:38]} b5 {[%emt 0:00:30]} 25. Qb3 {[%emt 0:00:23]} Qd6 {[%emt 0:00:35]} 26. f4 {[%emt 0:00:23]} Rac8 {[%emt 0:01:28]} 27. Rc1 {[%emt 0:00:38]} g6 {[%emt 0:00:47]} 28. e3 {[%emt 0:00:22]} Kg7 {[%emt 0:00:47]} 29. h4 {[%emt 0:01:04]} Rfd8 {[%emt 0:01:04]} 30. Qb2 {[%emt 0:02:48]} Kg8 {[%emt 0:01:06]} 31. Rxc8 {[%emt 0:01:45]} Rxc8 {[%emt 0:00:10]} 32. Rc1 {[%emt 0:00:05]} Rxc1+ {[%emt 0:02:34]} 33. Qxc1 {[%emt 0:00:03]} Be7 {[%emt 0:00:39]} 34. Nd3 {[%emt 0:07:10]} Kf7 {[%emt 0:01:22]} 35. h5 {[%emt 0:01:56]} Kg7 {[%emt 0:01:23]} 36. hxg6 {[%emt 0:00:41]} hxg6 {[%emt 0:00:12]} 37. Bf1 {[%emt 0:03:06]} Qc6 {[%emt 0:01:17]} 38. Qb2 {[%emt 0:00:20]} Qc7 {[%emt 0:00:32]} 39. Be2 {[%emt 0:02:58]} Bc8 {[%emt 0:01:12]} 40. Bf3 {[%emt 0:00:44]} Be6 {[%emt 0:00:27]} 41. Nc5 {[%emt 0:32:51]} Bf7 {[%emt 0:04:52]} 42. Qc3 {[%emt 0:00:00]} Qc6 {[%emt 0:06:06]} 1-0

[Event "FIDE WSTC Open 65 2025"]
[Site "Prague"]
[Date "2025.02.19"]
[Round "3.12"]
[White "Glatt, Gabor"]
[Black "Cocozza, Mario"]
[Result "1/2-1/2"]
[Annotator "ChessBase"]
[ECO "B17"]
[WhiteElo "2146"]
[BlackElo "2154"]
[PlyCount "61"]
[EventDate "2025.02.17"]
[EventType "team-tourn"]
[EventCountry "CZE"]
[SourceTitle "playchess.com"]
[Source "ChessBase"]
[SourceQuality "1"]
[TimeControl "40/5400+30:1800+30"]

1. e4 {[%emt 0:00:07]} c6 {[%emt 0:00:16]} 2. d4 {[%emt 0:01:05]} d5 {[%emt 0:00:57]} 3. Nc3 {[%emt 0:00:00]} dxe4 {[%emt 0:00:14]} 4. Nxe4 {[%emt 0:00:00]} Nd7 {[%emt 0:00:08]} 5. Bc4 {[%emt 0:00:56]} Ngf6 {[%emt 0:00:13]} 6. Nxf6+ {[%emt 0:00:12]} Nxf6 {[%emt 0:00:09]} 7. c3 {[%emt 0:00:32]} Qc7 {[%emt 0:01:02]} 8. Qf3 {[%emt 0:01:02]} Bg4 {[%emt 0:15:58]} 9. Qg3 {[%emt 0:00:28]} Qxg3 {[%emt 0:00:39]} 10. hxg3 {[%emt 0:00:12]} g6 {[%emt 0:05:19]} 11. Nf3 {[%emt 0:09:08]} Bxf3 {[%emt 0:00:36]} 12. gxf3 {[%emt 0:00:08]} Bg7 {[%emt 0:01:02]} 13. Bg5 {[%emt 0:02:32]} h6 {[%emt 0:07:43]} 14. Bd2 {[%emt 0:00:57]} e6 {[%emt 0:03:30]} 15. Rd1 {[%emt 0:11:43]} a6 {[%emt 0:11:55]} 16. Kf1 {[%emt 0:04:59]} Rc8 {[%emt 0:04:54]} 17. Bb3 {[%emt 0:08:13]} h5 {[%emt 0:03:00]} 18. Kg2 {[%emt 0:01:50]} O-O {[%emt 0:02:06]} 19. Rhe1 {[%emt 0:04:25]} Rfe8 {[%emt 0:17:33]} 20. Re2 {[%emt 0:10:53]} Nd5 {[%emt 0:06:44]} 21. Bg5 {[%emt 0:05:41]} Bf6 {[%emt 0:01:02]} 22. Bxd5 {[%emt 0:15:26]} Bxg5 {[%emt 0:00:08]} 23. Be4 {[%emt 0:00:10]} Red8 {[%emt 0:02:02]} 24. f4 {[%emt 0:00:55]} Bf6 {[%emt 0:00:21]} 25. Red2 {[%emt 0:04:08]} Rd6 {[%emt 0:01:00]} 26. Rd3 {[%emt 0:00:27]} Rcd8 {[%emt 0:01:57]} 27. Kf3 {[%emt 0:01:50]} Kf8 {[%emt 0:01:40]} 28. Ke3 {[%emt 0:01:01]} Ke7 {[%emt 0:04:23]} 29. c4 {[%emt 0:05:36]} a5 {[%emt 0:05:38]} 30. b3 {[%emt 0:00:18]} b6 {[%emt 0:00:48]} 31. Bg2 {[%emt 0:06:47]} 1/2-1/2

[Event "FIDE WSTC Open 65 2025"]
[Site "Prague"]
[Date "2025.02.19"]
[Round "3.13"]
[White "Yrjola, Jouni"]
[Black "Hugentobler, Patrick"]
[Result "1/2-1/2"]
[Annotator "RC"]
[ECO "D36"]
[WhiteElo "2287"]
[BlackElo "2242"]
[PlyCount "41"]
[EventDate "2025.02.17"]
[EventType "team-tourn"]
[EventCountry "CZE"]
[SourceTitle "playchess.com"]
[Source "ChessBase"]
[SourceQuality "1"]
[TimeControl "40/5400+30:1800+30"]

1. d4 {[%emt 0:00:05]} d5 {[%emt 0:00:08]} 2. c4 {[%emt 0:00:07]} e6 {[%emt 0:00:10]} 3. Nc3 {[%emt 0:00:19]} Nf6 {[%emt 0:00:11]} 4. cxd5 {[%emt 0:00:18]} exd5 {[%emt 0:00:14]} 5. Bg5 {[%emt 0:00:37]} c6 {[%emt 0:00:13]} 6. e3 {[%emt 0:00:16]} h6 {[%emt 0:00:23]} 7. Bh4 {[%emt 0:00:21]} Be7 {[%emt 0:00:19]} 8. Bd3 {[%emt 0:00:31]} Nbd7 {[%emt 0:00:19]} 9. Nge2 {[%emt 0:01:25]} Nh5 {[%emt 0:01:00]} 10. Bxe7 {[%emt 0:01:57]} Qxe7 {[%emt 0:00:09]} 11. Qc2 {[%emt 0:02:51]} Nb6 {[%emt 0:01:02]} 12. O-O-O {[%emt 0:02:04]} Be6 {[%emt 0:06:14]} 13. Kb1 {[%emt 0:08:30]} O-O-O {[%emt 0:00:58]} 14. Na4 {[%emt 0:02:23]} Nxa4 {[%emt 0:05:30]} 15. Qxa4 {[%emt 0:00:07]} Kb8 {[%emt 0:00:09]} 16. h3 {[%emt 0:18:13]} Nf6 {[%emt 0:07:44]} 17. Nc3 {[%emt 0:09:11]} Ne4 {[%emt 0:02:47]} 18. Qc2 {[%emt 0:01:27]} Bf5 {[%emt 0:06:45]} 19. Na4 {[%emt 0:03:56]} Qf6 {[%emt 0:02:16]} 20. Nc5 {[%emt 0:08:19]} Rhe8 {[%emt 0:07:21]} 21. Rhe1 {[%emt 0:02:27]} 1/2-1/2

[Event "FIDE WSTC Open 65 2025"]
[Site "Prague"]
[Date "2025.02.19"]
[Round "3.14"]
[White "Huss, Andreas"]
[Black "Binham, Timothy F."]
[Result "1/2-1/2"]
[Annotator "RC"]
[ECO "D21"]
[WhiteElo "2202"]
[BlackElo "2250"]
[PlyCount "25"]
[EventDate "2025.02.17"]
[EventType "team-tourn"]
[EventCountry "CZE"]
[SourceTitle "playchess.com"]
[Source "ChessBase"]
[SourceQuality "1"]
[TimeControl "40/5400+30:1800+30"]

1. d4 {[%emt 0:00:07]} d5 {[%emt 0:00:20]} 2. c4 {[%emt 0:00:10]} dxc4 {[%emt 0:00:09]} 3. Nf3 {[%emt 0:00:24]} c5 {[%emt 0:01:08]} 4. e3 {[%emt 0:01:23]} cxd4 {[%emt 0:01:08]} 5. Bxc4 {[%emt 0:00:27]} Qc7 {[%emt 0:01:07]} 6. Bb5+ {[%emt 0:03:50]} Bd7 {[%emt 0:01:43]} 7. Bxd7+ {[%emt 0:02:32]} Nxd7 {[%emt 0:00:47]} 8. Nxd4 {[%emt 0:01:01]} Ngf6 {[%emt 0:04:36]} 9. Nc3 {[%emt 0:02:39]} e5 {[%emt 0:04:18]} 10. Nf5 {[%emt 0:05:08]} g6 {[%emt 0:03:26]} 11. Ng3 {[%emt 0:00:51]} Bg7 {[%emt 0:08:25]} 12. O-O {[%emt 0:01:39]} O-O {[%emt 0:02:08]} 13. e4 {[%emt 0:05:38]} 1/2-1/2

[Event "FIDE WSTC Open 65 2025"]
[Site "Prague"]
[Date "2025.02.19"]
[Round "3.15"]
[White "Henttinen, Markku I.O."]
[Black "Vucenovic, Dragomir"]
[Result "1/2-1/2"]
[Annotator "ChessBase"]
[ECO "D94"]
[WhiteElo "2223"]
[BlackElo "2128"]
[PlyCount "103"]
[EventDate "2025.02.17"]
[EventType "team-tourn"]
[EventCountry "CZE"]
[SourceTitle "playchess.com"]
[Source "ChessBase"]
[SourceQuality "1"]
[TimeControl "40/5400+30:1800+30"]

1. d4 {[%emt 0:00:05]} d5 {[%emt 0:00:16]} 2. c4 {[%emt 0:00:32]} c6 {[%emt 0:00:15]} 3. Nf3 {[%emt 0:00:40]} Nf6 {[%emt 0:00:17]} 4. Nc3 {[%emt 0:00:39]} a6 {[%emt 0:00:20]} 5. e3 {[%emt 0:01:08]} g6 {[%emt 0:00:35]} 6. Be2 {[%emt 0:20:43]} Bg7 {[%emt 0:00:25]} 7. O-O {[%emt 0:00:41]} O-O {[%emt 0:00:36]} 8. h3 {[%emt 0:01:43]} Re8 {[%emt 0:02:59]} 9. Qb3 {[%emt 0:06:35]} e6 {[%emt 0:05:06]} 10. Rd1 {[%emt 0:15:23]} Nbd7 {[%emt 0:05:07]} 11. Bd2 {[%emt 0:02:19]} b6 {[%emt 0:11:11]} 12. Rac1 {[%emt 0:05:41]} Bb7 {[%emt 0:04:49]} 13. c5 {[%emt 0:04:32]} b5 {[%emt 0:02:02]} 14. a4 {[%emt 0:00:33]} Qc7 {[%emt 0:02:33]} 15. axb5 {[%emt 0:00:34]} axb5 {[%emt 0:00:55]} 16. Na2 {[%emt 0:10:28]} Reb8 {[%emt 0:19:20]} 17. Nb4 {[%emt 0:01:14]} Bc8 {[%emt 0:05:37]} 18. Ra1 {[%emt 0:01:11]} Qb7 {[%emt 0:03:43]} 19. Rdc1 {[%emt 0:00:45]} Rxa1 {[%emt 0:00:59]} 20. Rxa1 {[%emt 0:00:04]} Ra8 {[%emt 0:00:13]} 21. Ra3 {[%emt 0:04:44]} Ne8 {[%emt 0:13:42]} 22. Qa2 {[%emt 0:00:51]} Rxa3 {[%emt 0:01:30]} 23. Qxa3 {[%emt 0:00:14]} Bf6 {[%emt 0:03:05]} 24. Qa5 {[%emt 0:00:41]} Nc7 {[%emt 0:02:20]} 25. Bc3 {[%emt 0:05:48]} Be7 {[%emt 0:01:03]} 26. Nd2 {[%emt 0:03:13]} f6 {[%emt 0:01:59]} 27. f3 {[%emt 0:03:37]} Na6 {[%emt 0:05:06]} 28. Nd3 {[%emt 0:00:48]} Qc7 {[%emt 0:01:56]} 29. Qa1 {[%emt 0:01:47]} e5 {[%emt 0:02:00]} 30. b4 {[%emt 0:00:23]} exd4 {[%emt 0:01:30]} 31. Bxd4 {[%emt 0:00:11]} Qd8 {[%emt 0:00:22]} 32. f4 {[%emt 0:01:03]} Nc7 {[%emt 0:00:27]} 33. Bg4 {[%emt 0:01:34]} f5 {[%emt 0:00:36]} 34. Bf3 {[%emt 0:00:48]} Ne6 {[%emt 0:00:19]} 35. Bc3 {[%emt 0:03:59]} Bf6 {[%emt 0:01:55]} 36. Bxf6 {[%emt 0:00:53]} Nxf6 {[%emt 0:01:26]} 37. Qa8 {[%emt 0:00:54]} Bd7 {[%emt 0:00:28]} 38. Qa7 {[%emt 0:00:29]} Ne4 {[%emt 0:00:25]} 39. Nb3 {[%emt 0:00:48]} Be8 {[%emt 0:00:26]} 40. Ne5 {[%emt 0:00:22]} d4 {[%emt 0:01:29]} 41. Bxe4 {[%emt 0:19:47]} fxe4 {[%emt 0:00:20]} 42. Qa1 {[%emt 0:03:01]} dxe3 {[%emt 0:14:09]} 43. Ng4 {[%emt 0:00:18]} Qh4 {[%emt 0:13:05]} 44. Qf6 {[%emt 0:00:51]} Qxf6 {[%emt 0:00:12]} 45. Nxf6+ {[%emt 0:00:09]} Kf7 {[%emt 0:00:17]} 46. Nxe8 {[%emt 0:01:12]} Kxe8 {[%emt 0:00:01]} 47. g3 {[%emt 0:00:16]} Nc7 {[%emt 0:00:25]} 48. Nd4 {[%emt 0:00:51]} Kd7 {[%emt 0:00:12]} 49. Kf1 {[%emt 0:01:10]} Nd5 {[%emt 0:00:51]} 50. Nc2 {[%emt 0:01:32]} h5 {[%emt 0:00:39]} 51. Ke2 {[%emt 0:00:27]} Ke7 {[%emt 0:01:41]} 52. Nd4 1/2-1/2

[Event "FIDE WSTC Open 65 2025"]
[Site "Prague"]
[Date "2025.02.19"]
[Round "3.16"]
[White "Hohler, Peter"]
[Black "Westerinen, Heikki M.J."]
[Result "1/2-1/2"]
[Annotator "ChessBase"]
[ECO "E60"]
[WhiteElo "2045"]
[BlackElo "2213"]
[PlyCount "87"]
[EventDate "2025.02.17"]
[EventType "team-tourn"]
[EventCountry "CZE"]
[SourceTitle "playchess.com"]
[Source "ChessBase"]
[SourceQuality "1"]
[TimeControl "40/5400+30:1800+30"]

1. Nf3 {[%emt 0:00:14]} Nf6 {[%emt 0:00:32]} 2. g3 {[%emt 0:00:13]} g6 {[%emt 0:00:42]} 3. b3 {[%emt 0:00:17]} Bg7 {[%emt 0:01:47]} 4. Bb2 {[%emt 0:00:06]} O-O {[%emt 0:00:57]} 5. Bg2 {[%emt 0:00:22]} d6 {[%emt 0:07:54]} 6. d4 {[%emt 0:00:05]} c5 {[%emt 0:01:21]} 7. c4 {[%emt 0:05:29]} cxd4 {[%emt 0:05:29]} 8. Nxd4 {[%emt 0:00:14]} Qb6 {[%emt 0:01:18]} 9. Nc3 {[%emt 0:09:00]} Nc6 {[%emt 0:02:08]} 10. Na4 {[%emt 0:09:10]} Qa5+ {[%emt 0:05:18]} 11. Bc3 {[%emt 0:00:42]} Qc7 {[%emt 0:00:18]} 12. O-O {[%emt 0:02:49]} Bd7 {[%emt 0:01:03]} 13. Nb2 {[%emt 0:00:49]} Nxd4 {[%emt 0:01:27]} 14. Bxd4 {[%emt 0:00:42]} Bc6 {[%emt 0:00:19]} 15. e3 {[%emt 0:02:56]} Bxg2 {[%emt 0:06:54]} 16. Kxg2 {[%emt 0:00:02]} e5 {[%emt 0:07:52]} 17. Bc3 {[%emt 0:00:04]} Qc6+ {[%emt 0:01:25]} 18. Kg1 {[%emt 0:17:20]} Ne4 {[%emt 0:00:45]} 19. Rc1 {[%emt 0:02:29]} Rfd8 {[%emt 0:10:34]} 20. f3 {[%emt 0:18:19]} Nxc3 {[%emt 0:03:09]} 21. Rxc3 {[%emt 0:00:02]} d5 {[%emt 0:03:20]} 22. Rd3 {[%emt 0:04:49]} e4 {[%emt 0:07:10]} 23. Rxd5 {[%emt 0:02:43]} Rxd5 {[%emt 0:02:36]} 24. cxd5 {[%emt 0:00:08]} Qc3 {[%emt 0:00:21]} 25. Rf2 {[%emt 0:04:08]} Qxe3 {[%emt 0:01:10]} 26. Nc4 {[%emt 0:05:06]} Qd4 {[%emt 0:05:14]} 27. Qe2 {[%emt 0:04:15]} Qxd5 {[%emt 0:06:25]} 28. fxe4 {[%emt 0:00:11]} Qe6 {[%emt 0:00:57]} 29. Qd3 {[%emt 0:02:32]} Re8 {[%emt 0:03:50]} 30. Re2 {[%emt 0:01:43]} b5 {[%emt 0:00:44]} 31. Nd2 {[%emt 0:00:27]} a6 {[%emt 0:01:28]} 32. Nf3 {[%emt 0:00:53]} Qe7 {[%emt 0:01:19]} 33. Kg2 {[%emt 0:01:48]} Rd8 {[%emt 0:00:46]} 34. Qc2 {[%emt 0:00:05]} h6 {[%emt 0:01:02]} 35. Qc6 {[%emt 0:03:55]} Rd6 {[%emt 0:00:57]} 36. Qc8+ {[%emt 0:00:11]} Kh7 {[%emt 0:00:08]} 37. Qc5 {[%emt 0:01:08]} Qe6 {[%emt 0:01:54]} 38. Qe3 {[%emt 0:01:48]} Rd1 {[%emt 0:02:41]} 39. Re1 {[%emt 0:01:20]} Rd8 {[%emt 0:01:25]} 40. Re2 {[%emt 0:00:24]} Rc8 {[%emt 0:01:01]} 41. Qd2 {[%emt 0:05:37]} Qf6 {[%emt 0:04:54]} 42. Qf4 {[%emt 0:04:14]} Qe6 {[%emt 0:04:35]} 43. Qd2 {[%emt 0:00:15]} Qf6 {[%emt 0:07:22]} 44. Qf4 {[%emt 0:00:05]} 1/2-1/2

[Event "FIDE WSTC Open 65 2025"]
[Site "Prague"]
[Date "2025.02.19"]
[Round "3.17"]
[White "Littlewood, Paul E"]
[Black "Pribyl, Josef"]
[Result "1-0"]
[Annotator "RC"]
[ECO "B11"]
[WhiteElo "2309"]
[BlackElo "2184"]
[PlyCount "99"]
[EventDate "2025.02.17"]
[EventType "team-tourn"]
[EventCountry "CZE"]
[SourceTitle "playchess.com"]
[Source "ChessBase"]
[SourceQuality "1"]
[TimeControl "40/5400+30:1800+30"]

1. e4 {[%emt 0:00:08]} c6 {[%emt 0:00:19]} 2. Nc3 {[%emt 0:01:03]} d5 {[%emt 0:00:06]} 3. Nf3 {[%emt 0:00:10]} Bg4 {[%emt 0:00:20]} 4. h3 {[%emt 0:00:28]} Bxf3 {[%emt 0:00:03]} 5. Qxf3 {[%emt 0:00:07]} Nf6 {[%emt 0:00:16]} 6. d3 {[%emt 0:01:32]} e6 {[%emt 0:00:11]} 7. Be2 {[%emt 0:01:36]} Bb4 {[%emt 0:00:36]} 8. Bd2 {[%emt 0:02:20]} d4 {[%emt 0:03:35]} 9. Nb1 {[%emt 0:00:26]} Bxd2+ {[%emt 0:02:59]} 10. Nxd2 {[%emt 0:00:08]} Qa5 {[%emt 0:00:36]} 11. Rd1 {[%emt 0:06:50]} Nbd7 {[%emt 0:04:08]} 12. O-O {[%emt 0:01:34]} O-O {[%emt 0:01:10]} 13. Qg3 {[%emt 0:12:06]} e5 {[%emt 0:05:23]} 14. Nc4 {[%emt 0:03:39]} Qc7 {[%emt 0:05:45]} 15. f4 {[%emt 0:01:06]} b5 {[%emt 0:04:53]} 16. Nxe5 {[%emt 0:01:34]} Nxe5 {[%emt 0:00:05]} 17. fxe5 {[%emt 0:00:24]} Nd7 {[%emt 0:00:05]} 18. c3 {[%emt 0:10:16]} dxc3 {[%emt 0:03:53]} 19. bxc3 {[%emt 0:02:42]} Qxe5 {[%emt 0:00:20]} 20. Qxe5 {[%emt 0:00:51]} Nxe5 {[%emt 0:00:02]} 21. d4 {[%emt 0:00:42]} Ng6 {[%emt 0:02:11]} 22. Rf5 {[%emt 0:07:25]} Rad8 {[%emt 0:06:45]} 23. Rc5 {[%emt 0:03:03]} Ne7 {[%emt 0:01:44]} 24. Bf3 {[%emt 0:00:56]} f6 {[%emt 0:01:17]} 25. d5 {[%emt 0:03:41]} cxd5 {[%emt 0:10:19]} 26. exd5 {[%emt 0:00:11]} a6 {[%emt 0:01:30]} 27. d6 {[%emt 0:05:24]} Ng6 {[%emt 0:01:40]} 28. Bd5+ {[%emt 0:03:03]} Kh8 {[%emt 0:00:02]} 29. Bb7 {[%emt 0:01:24]} Ne5 {[%emt 0:21:27]} 30. Bxa6 {[%emt 0:02:27]} Ra8 {[%emt 0:04:13]} 31. Bxb5 {[%emt 0:08:17]} Rxa2 {[%emt 0:00:29]} 32. Rc7 {[%emt 0:03:05]} Raa8 {[%emt 0:01:44]} 33. c4 {[%emt 0:01:02]} Rfb8 {[%emt 0:02:36]} 34. c5 {[%emt 0:02:31]} Rxb5 {[%emt 0:00:46]} 35. d7 {[%emt 0:00:46]} Rbb8 {[%emt 0:01:43]} 36. Ra7 {[%emt 0:02:26]} Nxd7 {[%emt 0:06:13]} 37. Raxd7 {[%emt 0:01:09]} h5 {[%emt 0:03:24]} 38. R1d5 {[%emt 0:02:36]} Rb2 {[%emt 0:03:06]} 39. Rxh5+ {[%emt 0:00:55]} Kg8 {[%emt 0:00:00]} 40. Rh4 {[%emt 0:01:33]} Rc2 {[%emt 0:01:50]} 41. Rg4 {[%emt 0:31:47]} g5 {[%emt 0:30:07]} 42. Rc7 {[%emt 0:01:13]} Kf8 {[%emt 0:00:00]} 43. h4 {[%emt 0:00:00]} Ra5 {[%emt 0:00:00]} 44. Rb4 {[%emt 0:00:00]} Re2 {[%emt 0:00:00]} 45. h5 {[%emt 0:00:00]} Re7 {[%emt 0:00:00]} 46. Rb8+ {[%emt 0:00:00]} Kf7 {[%emt 0:00:00]} 47. Rxe7+ {[%emt 0:00:00]} Kxe7 {[%emt 0:00:00]} 48. h6 {[%emt 0:00:00]} g4 {[%emt 0:00:00]} 49. h7 {[%emt 0:00:00]} g3 {[%emt 0:00:00]} 50. Kf1 {[%emt 0:00:00]} 1-0

[Event "FIDE WSTC Open 65 2025"]
[Site "Prague"]
[Date "2025.02.19"]
[Round "3.18"]
[White "Babula, Milan"]
[Black "Povah, Nigel E"]
[Result "1/2-1/2"]
[Annotator "ChessBase"]
[ECO "B50"]
[WhiteElo "2077"]
[BlackElo "2206"]
[PlyCount "92"]
[EventDate "2025.02.17"]
[EventType "team-tourn"]
[EventCountry "CZE"]
[SourceTitle "playchess.com"]
[Source "ChessBase"]
[SourceQuality "1"]
[TimeControl "40/5400+30:1800+30"]

1. e4 {[%emt 0:00:02]} c5 {[%emt 0:00:11]} 2. Nf3 {[%emt 0:00:04]} Nc6 {[%emt 0:00:11]} 3. b3 {[%emt 0:00:20]} d6 {[%emt 0:01:26]} 4. Bb2 {[%emt 0:01:05]} e5 {[%emt 0:00:43]} 5. Bc4 {[%emt 0:02:26]} Be7 {[%emt 0:02:53]} 6. Nc3 {[%emt 0:00:52]} a6 {[%emt 0:01:38]} 7. a4 {[%emt 0:04:48]} Nf6 {[%emt 0:04:17]} 8. h3 {[%emt 0:07:49]} O-O {[%emt 0:09:17]} 9. O-O {[%emt 0:00:06]} Ne8 {[%emt 0:12:53]} 10. Nd5 {[%emt 0:05:06]} Rb8 {[%emt 0:09:38]} 11. c3 {[%emt 0:20:05]} b5 {[%emt 0:07:22]} 12. axb5 {[%emt 0:03:32]} axb5 {[%emt 0:02:25]} 13. Bd3 {[%emt 0:00:27]} Nc7 {[%emt 0:05:49]} 14. Nxc7 {[%emt 0:08:57]} Qxc7 {[%emt 0:00:06]} 15. Bc2 {[%emt 0:00:05]} b4 {[%emt 0:03:40]} 16. Bd3 {[%emt 0:19:16]} Be6 {[%emt 0:15:12]} 17. Bc4 {[%emt 0:00:11]} Bxc4 {[%emt 0:00:56]} 18. bxc4 {[%emt 0:00:02]} f5 {[%emt 0:00:49]} 19. Qe2 {[%emt 0:01:45]} Qd7 {[%emt 0:02:17]} 20. d3 {[%emt 0:01:02]} bxc3 {[%emt 0:03:35]} 21. Bxc3 {[%emt 0:00:03]} Rb3 {[%emt 0:00:32]} 22. Rfc1 {[%emt 0:02:31]} g6 {[%emt 0:08:07]} 23. Nd2 {[%emt 0:02:25]} Rb7 {[%emt 0:01:46]} 24. Rcb1 {[%emt 0:00:04]} Rxb1+ {[%emt 0:01:03]} 25. Rxb1 {[%emt 0:00:20]} Bg5 {[%emt 0:00:10]} 26. Nf3 {[%emt 0:06:08]} Bh6 {[%emt 0:00:25]} 27. Rb6 {[%emt 0:06:52]} Rb8 {[%emt 0:01:52]} 28. Rxb8+ {[%emt 0:02:51]} Nxb8 {[%emt 0:00:02]} 29. exf5 {[%emt 0:00:18]} Qxf5 {[%emt 0:00:56]} 30. g4 {[%emt 0:01:47]} Qc8 {[%emt 0:01:45]} 31. Qe4 {[%emt 0:00:28]} Qc6 {[%emt 0:00:11]} 32. Qxc6 {[%emt 0:01:32]} Nxc6 {[%emt 0:00:01]} 33. g5 {[%emt 0:00:13]} Bf8 {[%emt 0:00:14]} 34. Kf1 {[%emt 0:00:52]} Kf7 {[%emt 0:00:40]} 35. Nd2 {[%emt 0:01:06]} Be7 {[%emt 0:01:25]} 36. Ne4 {[%emt 0:00:06]} Ke6 {[%emt 0:00:24]} 37. Ke2 {[%emt 0:00:43]} Kf5 {[%emt 0:00:29]} 38. Kf3 {[%emt 0:00:07]} Nd8 {[%emt 0:02:15]} 39. Bd2 {[%emt 0:00:25]} Nc6 {[%emt 0:00:42]} 40. Be3 {[%emt 0:01:01]} Nb4 {[%emt 0:00:52]} 41. Ng3+ {[%emt 0:04:56]} Ke6 {[%emt 0:00:09]} 42. Ke2 {[%emt 0:00:09]} Nc2 {[%emt 0:05:32]} 43. Ne4 {[%emt 0:01:48]} Kf5 {[%emt 0:02:00]} 44. Ng3+ {[%emt 0:02:13]} Ke6 {[%emt 0:00:07]} 45. Ne4 {[%emt 0:00:11]} Kf5 {[%emt 0:00:10]} 46. Kf3 {[%emt 0:00:13]} Ne1+ {[%emt 0:03:34]} 1/2-1/2

[Event "FIDE WSTC Open 65 2025"]
[Site "Prague"]
[Date "2025.02.19"]
[Round "3.19"]
[White "Baker, Chris W"]
[Black "Vrana, Frantisek"]
[Result "1/2-1/2"]
[Annotator "ChessBase"]
[ECO "C41"]
[WhiteElo "2150"]
[BlackElo "2115"]
[PlyCount "33"]
[EventDate "2025.02.17"]
[EventType "team-tourn"]
[EventCountry "CZE"]
[SourceTitle "playchess.com"]
[Source "ChessBase"]
[SourceQuality "1"]
[TimeControl "40/5400+30:1800+30"]

1. d4 {[%emt 0:00:05]} Nf6 {[%emt 0:00:11]} 2. Nf3 {[%emt 0:01:37]} d6 {[%emt 0:01:44]} 3. Nc3 {[%emt 0:05:39]} Nbd7 {[%emt 0:00:20]} 4. e4 {[%emt 0:00:55]} e5 {[%emt 0:00:11]} 5. Be2 {[%emt 0:01:31]} Be7 {[%emt 0:00:14]} 6. a4 {[%emt 0:01:49]} c6 {[%emt 0:00:24]} 7. a5 {[%emt 0:04:48]} O-O {[%emt 0:00:58]} 8. O-O {[%emt 0:02:04]} Qc7 {[%emt 0:01:53]} 9. Re1 {[%emt 0:06:36]} Re8 {[%emt 0:01:04]} 10. h3 {[%emt 0:03:48]} h6 {[%emt 0:05:34]} 11. Be3 {[%emt 0:06:18]} Bf8 {[%emt 0:08:28]} 12. dxe5 {[%emt 0:10:07]} dxe5 {[%emt 0:01:26]} 13. Ra4 {[%emt 0:12:02]} Nc5 {[%emt 0:06:14]} 14. Rc4 {[%emt 0:00:30]} Na6 {[%emt 0:06:45]} 15. Ra4 {[%emt 0:04:32]} Nc5 {[%emt 0:00:38]} 16. Rc4 {[%emt 0:00:10]} Na6 {[%emt 0:00:12]} 17. Ra4 {[%emt 0:00:07]} 1/2-1/2